Cogmind - Beta 16.1 @@@ ROGUE MODE // 2026.04.02 @ 13:55:47 Player: Ammie Result: Destroyed by X-62 Marksman with Gauss Rifle Performance ------------- Evolutions (2) 1000 Regions Visited (3) 600 Robots Destroyed (59) 295 Value Destroyed (1263) 1263 Prototype IDs (4) 80 Alien Tech Used (0) 0 Bonus (0) 0 TOTAL SCORE: 3238 Bonus ------- None Cogmind --------- Core Integrity 0/550 Matter 10/300 Energy 265/265 System Corruption 0% Temperature Cool (0) Movement Core (550) Ox10 Location -8/Materials Parts ------- > --- POWER (2) -------- Reinforced Ion Engine > --- PROPULSION (4) --- (None) > --- UTILITY (3) ------ Improved Targeting Computer Kinecellerator Reactive Plating > --- WEAPON (2) ------- Gauss Cannon > --- INVENTORY (5) ---- Improved Hover Unit Kinecellerator Kinecellerator Heavy EM Shotgun Peak State ------------ > --- POWER ------------ Light Nuclear Core Light Nuclear Core > --- PROPULSION ------- Cesium-ion Thruster Cesium-ion Thruster Cesium-ion Thruster Cesium-ion Thruster > --- UTILITY ---------- Sensor Array Improved Targeting Computer Improved Targeting Computer > --- WEAPON ----------- Gauss Cannon Rocket Array > --- INVENTORY -------- VTOL Module VTOL Module Kinecellerator Kinecellerator Kinecellerator [Rating: 33] Favorites ----------- Power Light Ion Engine Engine Light Ion Engine Power Core Light Nuclear Core Propulsion Aluminum Leg Treads Advanced Treads Leg Aluminum Leg Hover Unit Improved Hover Unit Flight Unit VTOL Module Utility Improved Targeting Computer Device Sensor Array Storage Small Storage Unit Processor Improved Targeting Computer Protection Reactive Plating Weapon EM Shotgun Energy Gun EM Shotgun Ballistic Gun Assault Rifle Ballistic Cannon Gauss Cannon Launcher Rocket Launcher Build | -11 -10 -9 -8 ------- Run | Yrd Mat Mat Mat Slots Evolved 4 | . . 2 2 Power 1 | . . . 1 Propulsion 2 | . . 2 . Utility 1 | . . . 1 Weapon . | . . . . Parts Attached 58 | 6 13 15 24 Power 8 | 1 2 1 4 Engine 6 | 1 2 . 3 Core 2 | . . 1 1 Reactor . | . . . . Propulsion 21 | 2 3 8 8 Treads 1 | . . . 1 Leg 8 | 2 3 1 2 Wheel . | . . . . Hover 2 | . . 1 1 Flight 10 | . . 6 4 Utility 9 | 1 3 . 5 Device 5 | . 3 . 2 Storage 1 | 1 . . . Processor 2 | . . . 2 Hackware . | . . . . Protection 1 | . . . 1 Artifact . | . . . . Weapon 20 | 2 5 6 7 Energy Gun 11 | . 5 4 2 Energy Cannon . | . . . . Ballistic Gun 3 | 2 . 1 . Ballistic Cannon 4 | . . . 4 Launcher 2 | . . 1 1 Special Weapon . | . . . . Impact Weapon . | . . . . Slashing Weapon . | . . . . Piercing Weapon . | . . . . Special Melee Weapon . | . . . . Unidentified Prototypes 4 | . . 1 3 Parts Lost 25 | . 3 5 17 Power 5 | . 1 . 4 Propulsion 12 | . 2 3 7 Utility 3 | . . . 3 Weapon 5 | . . 2 3 Highest Loss Streak 6 | . 2 2 6 To Critical Strikes . | . . . . Average Backups 5 | . 5 7 4 Power . | . . 1 . Propulsion . | . . 1 1 Utility 2 | . 1 2 2 Weapon 2 | . 3 3 . Tool/Special . | . . . . Unused Backups 10 | . 1 4 5 Power . | . . . . Propulsion 4 | . 1 . 3 Utility 4 | . . 2 2 Weapon 2 | . . 2 . Tool/Special . | . . . . Average Slot Usage (%) 82 | . 92 94 62 Engine 10 | . 13 7 8 Core 1 | . . 3 2 Treads 1 | . . . 3 Leg 11 | . 22 10 . Flight 8 | . . 28 9 Device 9 | . 13 11 4 Storage 8 | . 14 11 . Processor 6 | . . . 16 Energy Gun 11 | . 15 19 3 Ballistic Gun 5 | . 12 1 . Ballistic Cannon 4 | . . . 13 Peak Build Rating 33 | 6 10 18 33 Average Rating 13 | 4 7 15 20 On Entrance 8 | . 6 10 18 Avg Prop Armor Cover (%) 4 | . . 6 3 Naked Turns . | . . . . Heaviest Build 38 | 13 15 18 38 Greatest Support 33 | 20 20 33 24 Greatest Overweight (x) 12 | . 1 3 12 Average Overweight (x) . | . . . 1 Largest Inventory Capacity 8 | 8 8 8 8 Average Capacity 6 | 6 8 8 5 Most Carried 8 | 1 8 8 6 Average Carried 5 | . 5 7 4 Final Capacity 8 | 8 8 8 5 Final Carried 8 | 1 8 6 4 Class Distribution -------------------- 81% | Mutant 14% | Sprinter 3% | Scavenger-Mutant Dominant Class ---------------- Mutant | -10/Materials Sprinter | -9/Materials Mutant | -8/Materials Resources | -11 -10 -9 -8 ----------- Run | Yrd Mat Mat Mat Matter Collected 1173 | 243 295 175 460 Remotely . | . . . . Salvage Created 1863 | . 845 714 304 Parts 145 | . 61 57 27 Haulers Intercepted 5 | . 2 3 . Recyclers Shooed 1 | . 1 . . Parts Field Recycled . | . . . . Retrieved Matter . | . . . . Parts Self-Destructed . | . . . . Prevented . | . . . . Parts Restored . | . . . . Kills | -11 -10 -9 -8 ------- Run | Yrd Mat Mat Mat Combat Hostiles Destroyed 39 | . 16 16 7 Guns 28 | . 16 11 1 Cannons 6 | . . . 6 AOE 5 | . . 5 . Classes Destroyed 11 | . 8 1 2 Worker 3 | . 1 1 1 Builder 2 | . 1 . 1 Hauler 5 | . 2 3 . Recycler 3 | . 2 . 1 Operator 2 | . 2 . . Watcher 5 | . 3 1 1 Swarmer 16 | . 9 7 . Grunt 14 | . 7 5 2 Brawler 1 | . . . 1 Sentry 6 | . . 4 2 Hunter 2 | . . . 2 Best Kill Streak 8 | . 8 5 4 Combat Bots Only 6 | . 6 5 4 Max Kills in Single Turn 4 | . 2 4 1 Gunslinging 1 | . 1 . . Exploded 3 | . . 3 . Melee . | . . . . Uniques/NPCs Destroyed . | . . . . Combat | -11 -10 -9 -8 -------- Run | Yrd Mat Mat Mat Hostile Shots Fired 309 | . 96 51 162 Missed 96 | . 31 16 49 Hits 213 | . 65 35 113 Projectile 213 | . 65 35 113 Critical Strikes 2 | . . . 2 Damage Taken 3224 | . 658 503 2063 Core 683 | . 58 72 553 Absorbed by Shields . | . . . . Ignored by Resistances 98 | . . . 98 Regen/Repaired (Parts) 55 | . 55 . . Core Remaining (%) 86 | 100 76 82 . Volleys Fired 166 | . 58 50 58 Largest 2 | . 2 2 2 Hottest 101 | . 90 101 80 Shots Fired 294 | . 116 84 94 Gun 203 | . 116 80 7 Cannon 87 | . . . 87 Launcher 4 | . . 4 . Special . | . . . . Kinetic 174 | . 80 7 87 Thermal 15 | . . 15 . Explosive 4 | . . 4 . Electromagnetic 101 | . 36 58 7 Robot Hit Streak 14 | . 8 14 9 Robot Miss Streak 5 | . 5 5 4 Penetration Max 1 | . . . 1 Secondary Targets 6 | . 4 2 . Max Gunslinging Chain 1 | . 1 1 . Shots Hit Robots 170 | . 65 44 61 Core Hits 98 | . 47 35 16 Critical Kills 1 | . 1 . . Critical Parts Destroyed . | . . . . Critical Strikes 4 | . 1 . 3 Destroy 1 | . 1 . . Blast 3 | . . . 3 Melee Attacks . | . . . . Impact . | . . . . Slashing . | . . . . Piercing . | . . . . Sneak Attacks . | . . . . Combat Hostiles . | . . . . Follow-up Attacks . | . . . . Damage Inflicted 3677 | . 1056 1058 1563 Guns 1634 | . 880 647 107 Cannons 1456 | . . . 1456 Explosions 580 | . 169 411 . Melee . | . . . . Ramming 7 | . 7 . . Kinetic 1969 | . 465 48 1456 Thermal 283 | . 169 114 . Explosive 368 | . . 368 . Electromagnetic 1050 | . 415 528 107 Impact . | . . . . Slashing . | . . . . Piercing . | . . . . Highest Corruption . | . . . . Average Corruption . | . . . . Corruption Purged . | . . . . Corruption Blocked . | . . . . Overload Shots . | . . . . Overflow Damage 52 | . 8 38 6 Projectiles 6 | . . . 6 Explosions 46 | . 8 38 . Melee . | . . . . Knockbacks 12 | . . . 12 Impact . | . . . . Kinetic 12 | . . . 12 Secondary . | . . . . Self-Inflicted Damage 88 | . 44 44 . Shots 3 | . 2 1 . Rammed 2 | . . . 2 Targets Rammed 5 | . 3 . 2 Kicked 3 | . 3 . . Crushed . | . . . . Highest Temperature 401 | . 264 338 401 Average Temperature 109 | . 90 119 103 Received Heat Transfer 546 | . 129 102 315 Effects 6 | . . 5 1 Energy Bleed 5 | . . 5 . Matter Decay 1 | . . . 1 Siege Activations . | . . . . Martial Activations . | . . . . Shielding Activations . | . . . . Robots Disrupted . | . . . . Combat Hostiles . | . . . . Robots Corrupted . | . . . . Combat Hostiles . | . . . . Parts Fried 3 | . 1 2 . Impact Corruptions . | . . . . Robots Melted . | . . . . Combat Hostiles . | . . . . Parts Melted . | . . . . Heat Transferred 485 | . 250 235 . Parts Sabotaged . | . . . . Parts Stolen . | . . . . Parts Stripped . | . . . . Power Chain Reactions 5 | . 4 1 . Alert | -11 -10 -9 -8 ------- Run | Yrd Mat Mat Mat Maximum Alert Level 1 | . . 1 . Low Security (%) 97 | 100 100 83 100 Level 1 2 | . . 16 . Level 2 . | . . . . Level 3 . | . . . . Level 4 . | . . . . Level 5 . | . . . . High Security . | . . . . Max Security . | . . . . Peak Influence 371 | . 164 371 170 Initial 156 | . . 16 156 Average 56 | . 46 74 63 Influence Increases 1412 | . 471 604 337 Destroy 0b10 Robot/C 780 | . 320 320 140 Destroy 0b10 Robot/NC 100 | . 55 25 20 Destroy Leader 200 | . 70 78 52 Successful Hack 26 | . 12 9 5 Disable Machine 15 | . . 15 . Destroy Structure 96 | . 14 37 45 Partial Spotted 45 | . . 30 15 Lose Combat Pursuer 150 | . . 90 60 Influence Decreases 1407 | . 432 272 703 Entered New Map 238 | . . 23 215 Time Decay 943 | . 402 199 342 Lost Part 226 | . 30 50 146 Squads Dispatched 6 | . 2 2 2 Investigation 2 | . 1 1 . Extermination . | . . . . Reinforcement 4 | . 1 1 2 Assault . | . . . . Garrison . | . . . . Intercept . | . . . . Searches Triggered . | . . . . Construction Impeded . | . . . . Haulers Reinforced . | . . . . Active Scanning Responses . | . . . . Cargo Convoy Interrupts . | . . . . Stealth | -11 -10 -9 -8 --------- Run | Yrd Mat Mat Mat Distress Signals 6 | . 1 4 1 Communications Jammed . | . . . . Distress Signals . | . . . . Times Spotted 61 | . 21 22 18 Peak Tracking Total 6 | . 4 6 6 Tactical Retreats 5 | . . 2 3 Traps | -11 -10 -9 -8 ------- Run | Yrd Mat Mat Mat Traps Triggered 3 | . 2 1 . Indirectly . | . . . . Trap Hack Attempts . | . . . . Triggered . | . . . . Disarmed . | . . . . Reprogrammed . | . . . . Reused . | . . . . Traps Extracted . | . . . . Installed . | . . . . Triggered . | . . . . Machines | -11 -10 -9 -8 ---------- Run | Yrd Mat Mat Mat Machines Disabled 1 | . . 1 . Max in Single Turn 1 | . . 1 . Machines Repaired . | . . . . Machines Dismantled . | . . . . Machines Sabotaged . | . . . . Overloaded Fab Kills . | . . . . Hacking | -11 -10 -9 -8 --------- Run | Yrd Mat Mat Mat Machines Accessed 12 | . 6 3 3 Terminals 9 | . 5 2 2 Fabricators . | . . . . Repair Stations 1 | . 1 . . Recycling Units . | . . . . Scanalyzers 2 | . . 1 1 Garrison Access . | . . . . Total Hacks 26 | . 11 7 8 Successful 15 | . 6 4 5 Failed 11 | . 5 3 3 Catastrophic 3 | . 3 . . Database Lockouts . | . . . . Manual . | . . . . Terminals 18 | . 8 4 6 Fabricators . | . . . . Repair Stations 3 | . 3 . . Recycling Units . | . . . . Scanalyzers 5 | . . 3 2 Garrison Access . | . . . . Terminal Hacks 10 | . 4 3 3 Record 1 | . . . 1 Level Access Points 1 | . 1 . . Locate Traps 4 | . 2 2 . Hauler Manifests 2 | . . 1 1 Zone Layout 2 | . 1 . 1 Fabricator Hacks . | . . . . Repair Station Hacks 2 | . 2 . . Scan Component 1 | . 1 . . Repair 1 | . 1 . . Recycling Unit Hacks . | . . . . Scanalyzer 3 | . . 1 2 Retrieve Study 3 | . . 1 2 Garrison Access Hacks . | . . . . Unauthorized Hacks . | . . . . Terminals . | . . . . Fabricators . | . . . . Repair Stations . | . . . . Recycling Units . | . . . . Scanalyzers . | . . . . Garrison Access . | . . . . Data Cores Recovered 1 | . 1 . . Used . | . . . . Hacking Detections 6 | . 3 2 1 Full Trace Events 3 | . 2 1 . Feedback Events . | . . . . Feedback Blocked . | . . . . Robot Schematics Acquired . | . . . . Robots Built . | . . . . Authchips . | . . . . Time . | . . . . Total Robot Build Rating . | . . . . Part Schematics Acquired . | . . . . Parts Built . | . . . . Authchips . | . . . . Time . | . . . . Total Part Build Rating . | . . . . Part Studies Acquired 3 | . . 1 2 Parts Repaired 1 | . 1 . . Time 26 | . 26 . . Parts Recycled . | . . . . Recycled Matter . | . . . . Retrieved Matter . | . . . . Retrieved Components . | . . . . Parts Scanalyzed . | . . . . Part Schematics Acquired . | . . . . Parts Damaged . | . . . . Bothacking | -11 -10 -9 -8 ------------ Run | Yrd Mat Mat Mat Used RIF Installer . | . . . . Robots Hacked . | . . . . Non-combat . | . . . . Combat . | . . . . Robot Hacks Applied . | . . . . Relay Couplers Released . | . . . . Fabnet Peak Effective % . | . . . . Robots Rewired . | . . . . Allies Hacked . | . . . . Hacks Repelled . | . . . . Allies | -11 -10 -9 -8 -------- Run | Yrd Mat Mat Mat Total Allies . | . . . . Largest Group . | . . . . Highest-Rated Group . | . . . . Highest-Rated Ally . | . . . . Total Orders . | . . . . Ally Attacks . | . . . . Total Damage . | . . . . Kills . | . . . . Allies Corrupted . | . . . . Allies Melted . | . . . . Intel | -11 -10 -9 -8 ------- Run | Yrd Mat Mat Mat Active Infowar (turns) 2087 | . 1375 573 139 Sensors 1196 | . 484 573 139 Terrain 866 | . 866 . . Seismic 25 | . 25 . . Robot Analysis Total . | . . . . Derelict Logs Recovered . | . . . . Drone Launches . | . . . . Drone Recoveries . | . . . . Exploration | -11 -10 -9 -8 ------------- Run | Yrd Mat Mat Mat Turns Passed 3180 | 74 1384 573 1149 Spaces Moved 2068 | 58 770 673 567 Core 99 | 7 . . 92 Treads 149 | . . . 149 Legs 962 | 51 770 109 32 Wheels . | . . . . Hover 3 | . . 3 . Flight 855 | . . 561 294 Fastest Speed 26 | 50 120 26 26 Average Speed 114 | 111 140 48 158 Slowest Speed 650 | 120 190 305 650 Overloaded Moves . | . . . . Propulsion Burnouts . | . . . . Robots Hopped 2 | . . 1 1 Potential Cave-ins . | . . . . Cave-ins Triggered . | . . . . Exploration Rate (%) 42 | 4 78 67 21 Regions Visited 3 Branch Regions . Pre-discovered Areas . | . . . . Known Exits Taken 1 | . 1 . . Unknown Exits Taken 2 | 1 . 1 . Scrap Searched . | . . . . Spaces Dug 21 | . . 18 3 Terrain Destroyed 90 | . 13 32 45 Melee . | . . . . Projectile 45 | . . . 45 AOE 45 | . 13 32 . Terrain Rammed . | . . . . Walls Destroyed . | . . . . Machines Disabled . | . . . . Actions | -11 -10 -9 -8 --------- Run | Yrd Mat Mat Mat Total 2569 | 64 955 834 716 Wait 221 | . 103 76 42 Move 2061 | 57 769 670 565 Hop 2 | . . 1 1 Pick Up 25 | 1 6 10 8 Fast Attach 25 | 6 4 4 11 Attach 10 | . 1 3 6 Detach 2 | . . . 2 Swap 30 | . 9 10 11 Drop 22 | . 2 10 10 Fire 166 | . 58 50 58 Melee . | . . . . Ram 2 | . . . 2 Kick 3 | . 3 . . Crush . | . . . . Escape Stasis . | . . . . Rewire . | . . . . Trap . | . . . . Miscellaneous . | . . . . Route ------- -11/Scrapyard -10/Materials (discovered 4 exits: *Mat x3 / [*Min]) -9/Materials (discovered 3 exits: *Mat x2 / [*Min]) -8/Materials History --------- Turn | Location | Event 17 | -11/Scrapyard | Discovered new exit (range 15) 75 | -11/Scrapyard | Entered Materials 301 | -10/Materials | Build established: Mutant 432 | -10/Materials | Repaired Aluminum Leg 531 | -10/Materials | Discovered new exit (range 6) 664 | -10/Materials | Discovered new exit (range 15) 792 | -10/Materials | Discovered new exit (range 16) 1253 | -10/Materials | Discovered new exit (range 10) 1418 | -10/Materials | Identified exit to Materials 1459 | -10/Materials | Entered another Materials area 1459 | -9/Materials | Evolved 2 slots: Propulsion x2 1696 | -9/Materials | Discovered new exit (range 15) 1850 | -9/Materials | Discovered new exit (range 15) 1992 | -9/Materials | Discovered new exit (range 16) 2004 | -9/Materials | Build established: Sprinter 2032 | -9/Materials | Entered another Materials area 2032 | -8/Materials | Evolved 2 slots: Power x1, Utility x1 2143 | -8/Materials | Found Prototype Launcher 2143 | -8/Materials | Identified Rocket Array 2230 | -8/Materials | Lost 3 parts (2p1u) 2378 | -8/Materials | Lost 6 parts (1p4n1w) 2447 | -8/Materials | Core integrity fell below 50% 2573 | -8/Materials | Build established: Mutant 3145 | -8/Materials | Core integrity fell below 20% 3181 | -8/Materials | Destroyed by X-62 Marksman with Gauss Rifle Last Messages --------------- 03118_ Critical hit (Blast). 03122_ U-05 Engineer builds a Wall. 03124_ Acquired Reactive Plating. 03125_ Acquired 4 matter. 03127_ Acquired 5 matter. 03129_ U-05 Engineer builds a Wall. 03130_ Slug penetrates H-61 Shepherd. 03137_ U-05 Engineer builds a Wall. 03138_ Acquired 11 matter. 03138_ Penetrated by Slug. 03139_ Slug penetrates Wall. 03145_ Acquired 11 matter. 03148_ Slug penetrates Wall. 03151_ Penetrated by Slug. 03155_ Slug penetrates Wall. 03159_ Slug penetrates G-47 Trooper. 03161_ Adv. Treads destroyed. 03178_ Penetrated by Slug. 03178_ Gauss Cannon destroyed. 03179_ Penetrated by Slug. Map ----- +----------------------------------------------------+ | ???????????????????????????????????????? | | ???????????????????????????????????????? | | ???????????????????????????????????????? | | ???????????????????????????????????????? | | ???????????????????????????????????????? | | ???????????????????????????????????????? | | ???????????????????????????????????????? | | ?????????? ????????????????????????????? | | ???????? ???????????????????????????? | | ???????? ??????????????????????????? | | ??????? ?????????????????????????? | | ??????? ?????????????????????????? | | ?????? %%% % ????????????????????????? | | ?????? #???????????????????????? | | ???????# % %H"#??????????????????????? | | ????????#% """#############?????????? | | ????????# # #?????????? | | ????????# " #??????????? | | ????????+ / !! [ #??????????? | | ????????# # ! % #??????????? | | ????????# ??# ! #??????????? | | ????????# ?# #??????????? | | ????????# ######"""""""####????????? | | ????????# ######## ###;#####???????? | | ????????# k #####xx #???????? | | ????????# w @ ! #???????? | | ????????# t #???????? | | ????????# #???????? | | ????????# ##### #???????? | | ????????##########;#+###### ##???????? | | ??????????# # #####????? | | ??????????# "" "" "" # #????? | | ??????????# """ """ # #????? | | ??????????# """ """ # ] #????? | | ??????????# """" """" ## ## ]]#????? | | ??????????# """ """ ## ## #????? | | ??????????# "" "" ## ## #????? | | ??????????# "" "" ## ######????? | | ??????????# ## ###???????? | | ??????????# ## #########?? | | ??????????##################+## #?? | | ????????????????????# #! ""#?? | | ????????????????????# """ """ # T"#?? | | ????????????????????# """*""" + ""#?? | | ????????????????????# """ """ #| ##? | | ????????????????????# """!= # # # | | ????????????????????# """ ##+####### | | ?????????????######## ## ##????? | | ?????????????# ! # ## #?????? | | ?????????????#!! #+###/###### #?????? | +----------------------------------------------------+ Best States ------------- Heat Dissipation 31 Energy Generation 23 Energy Capacity 290 Matter Stores 300 Matter Capacity 300 Sight Range 16 Robot Scan Range 14 Terrain Scan Range 14 Terrain Scan Density 10 Armor Coverage 150 Resistance: KI 20 Evasion (%) 64 Targeting Accuracy 12 Recoil Reduction 1 Kinecelleration 30 Item Schematics ----------------- None Robot Schematics ------------------ None Fabricated ------------ Nothing Repaired ---------- Aluminum Leg | 38% | -10/Materials Studied --------- VTOL Module | -9/Materials | Hacked Cesium-ion Thruster | -8/Materials | Hacked Hvy. EM Pulse Gun | -8/Materials | Hacked Alien Tech Used ----------------- None Achievements -------------- None Challenges ------------ None Game ------ Seed ForceBlastSpecial Manual? 0 Play Time 00:29:42 Cumulative 30.9 hours Start 2026.04.02 @ 13:27:37 End 2026.04.02 @ 13:55:47 Sessions 1 Manual Loads 0 Difficulty Rogue Special Mode None Game No. 54 Rogue 54 Adventurer 0 Explorer 0 Win Type - Total 0 Types 0/0/0/0/0/0/0/0/0/0 Lore% 8 Gallery% 21 Achievement% 18 Wizard Run 0 Options --------- Layout 0 ASCII 0 Keyboard 0 Movement Mouse Keybinds 0 Fullscreen 1 Font 24/Smallcaps Map View 38x25 Zoom Use 99% Tactical HUD 1 Map Filters NONE Filters NONE Steam 1 RUN: 6f41a0b1-7595-40d9-b22f-468572b2948f